bitfinex-derivatives/quotes_ETHF0:USTF0_20230106
["timestamp","ask_amount","ask_price","bid_price","bid_amount"]
[1673012287469,2.99977483,1245.4,1245.3,3.2078]
[1673012287679,4.59777483,1245.5,1245.3,3.2078]
[1673012288312,1.598,1245.5,1245.3,3.2078]
[1673012288528,1.598,1245.5,1245.1,12.8588]
[1673012288529,2.99977483,1245.4,1245.1,12.8588]
[1673012289254,2.99977483,1245.4,1245.1,4.8168]
[1673012291667,4.60877483,1245.3,1245.1,3.2078]
[1673012292304,4.60877483,1245.3,1244.9,4.8168]
[1673012292621,1.594,1245.1,1244.9,3.2078]
[1673012295776,1.609,1245.0,1244.9,3.2078]
[1673012295988,1.609,1245.0,1244.7,3.2078]
[1673012296720,1.604,1244.9,1244.7,3.2078]
[1673012297142,1.609,1245.0,1244.7,6.0161895]
[1673012297353,1.609,1245.0,1244.9,3.2078]
[1673012298818,4.60877483,1245.0,1244.9,3.2078]
[1673012299028,1.609,1245.0,1244.9,3.2078]
[1673012299555,4.60877483,1245.2,1244.9,3.2078]
[1673012300082,1.609,1245.2,1245.1,3.2078]
[1673012300400,2.99977483,1245.3,1245.1,3.2078]
[1673012301131,2.99977483,1245.4,1245.1,12.8588]
[1673012301341,2.99977483,1245.4,1245.3,3.2078]
[1673012301771,2.99977483,1245.5,1245.3,3.2078]
[1673012302505,2.99977483,1245.4,1245.3,3.2078]
[1673012303136,4.60877483,1245.4,1245.3,3.2078]
[1673012303342,5.20431935,1245.4,1245.1,4.8168]
[1673012303662,2.99799359,1245.3,1245.1,4.8168]
[1673012304075,2.99799359,1245.2,1245.1,4.8168]
[1673012304294,2.99799359,1245.2,1245.1,3.2078]
[1673012305449,4.60699359,1245.3,1245.1,3.2078]
[1673012305661,2.99799359,1245.2,1245.1,3.2078]
[1673012305872,2.99799359,1245.2,1245.0,1.609]
[1673012306190,5.20431935,1245.3,1245.1,4.8068]
[1673012306191,2.99799359,1245.3,1245.1,4.8068]
[1673012306386,2.99799359,1245.2,1245.1,4.8068]
[1673012306916,2.99799359,1245.2,1245.1,3.2078]
[1673012307127,2.99799359,1245.2,1245.0,1.609]
[1673012307335,2.99893179,1245.1,1245.0,1.609]
[1673012308916,2.99893179,1245.1,1244.9,3.2078]
[1673012309760,2.99893179,1245.0,1244.9,3.2078]
[1673012309959,4.60793179,1245.0,1244.7,4.8168]
[1673012310173,4.59993179,1245.0,1244.9,3.2078]
[1673012310382,2.99893179,1245.2,1244.9,4.8168]
[1673012310701,2.99883327,1245.2,1245.1,3.2078]
[1673012313226,2.99883327,1245.3,1245.1,3.2078]
[1673012313963,3.59531935,1245.4,1245.1,3.2078]
[1673012313964,2.99883327,1245.2,1245.1,3.2078]
[1673012315735,3.59531935,1245.3,1245.0,1.609]
[1673012315952,3.00331211,1245.1,1244.9,4.4071895]
[1673012316158,3.00331211,1245.1,1244.9,3.2078]
[1673012316376,4.61231211,1245.1,1244.9,3.2078]
[1673012317009,3.00331211,1245.1,1244.9,4.4071895]
[1673012317213,3.00331211,1245.2,1244.9,7.81527376]
[1673012317423,3.00331211,1245.2,1244.9,6.0161895]
[1673012317743,3.00331211,1245.1,1244.9,6.0161895]
[1673012318264,3.00331211,1245.1,1244.9,4.8168]
[1673012318584,3.00331211,1245.0,1244.9,4.8168]
[1673012319216,3.00331211,1245.0,1244.9,3.2078]
[1673012320479,3.00331211,1245.1,1244.9,6.0161895]
[1673012321318,3.00331211,1245.2,1245.0,2.7973895]
[1673012321531,3.00331211,1245.2,1245.1,3.2078]
[1673012321743,3.59531935,1245.3,1245.1,3.2078]
[1673012321947,7.78939397,1245.3,1245.1,3.2078]
[1673012322582,5.20431935,1245.2,1245.1,3.2078]
[1673012323001,9.39839397,1245.2,1245.1,3.2078]
[1673012324051,9.39839397,1245.2,1244.8,2.99847376]
[1673012324365,3.00615584,1244.9,1244.7,15.85727376]
[1673012324785,3.00615584,1244.9,1244.7,14.24827376]
[1673012325320,3.00615584,1244.9,1244.7,12.4491895]
[1673012325845,4.61515584,1245.0,1244.8,1.1993895]
[1673012326044,3.00615584,1244.9,1244.8,1.1993895]
[1673012326469,4.61515584,1244.9,1244.8,1.1993895]
[1673012326681,4.61515584,1244.9,1244.7,6.20627376]
[1673012327107,4.61515584,1244.9,1244.7,4.4071895]
[1673012327421,3.00615584,1244.8,1244.7,4.4071895]
[1673012327630,4.61515584,1244.9,1244.7,4.4071895]
[1673012328472,4.61515584,1244.9,1244.7,6.20627376]
[1673012328674,4.61515584,1244.9,1244.7,4.4071895]
[1673012329517,3.00615584,1244.8,1244.7,1.1993895]
[1673012329838,3.00615584,1244.8,1244.6,2.99847376]
[1673012330153,3.00615584,1244.8,1244.7,1.1993895]
[1673012330365,3.00615584,1244.8,1244.6,2.99847376]
[1673012330569,3.00615584,1244.8,1244.7,1.1993895]
[1673012330883,4.61515584,1244.8,1244.6,1.1993895]
[1673012331303,1.609,1244.7,1244.6,1.1993895]
[1673012331517,1.609,1244.7,1244.5,6.20627376]
[1673012331738,4.61515584,1244.7,1244.5,6.20627376]
[1673012333102,1.609,1244.7,1244.5,4.4071895]
[1673012334467,4.61515584,1244.7,1244.5,3.2078]
[1673012334776,3.00615584,1244.6,1244.4,1.1993895]
[1673012335097,4.61515584,1244.7,1244.4,1.1993895]
[1673012335828,4.61515584,1244.7,1244.3,7.81527376]
[1673012336569,4.61515584,1244.7,1244.4,1.1993895]
[1673012336991,4.61515584,1244.7,1244.3,7.81527376]
[1673012337415,4.61515584,1244.7,1244.4,1.1993895]
[1673012338880,4.61515584,1244.7,1244.3,6.0161895]
[1673012339300,1.609,1244.7,1244.5,3.2078]
[1673012340038,1.604,1244.8,1244.5,3.2078]
[1673012340242,1.604,1244.8,1244.7,3.2078]
[1673012340447,4.61515584,1244.9,1244.7,3.2078]
[1673012340660,4.61515584,1244.8,1244.5,3.2078]
[1673012340873,4.61015584,1244.7,1244.3,2.8083895]
[1673012341085,4.61015584,1244.7,1244.3,3.2078]
[1673012341086,4.61515584,1244.6,1244.3,3.2078]
[1673012341929,1.609,1244.6,1244.3,4.4071895]
[1673012342139,4.61015584,1244.7,1244.5,3.2078]
[1673012342347,4.61515584,1244.8,1244.5,3.2078]
[1673012343718,3.00615584,1244.7,1244.5,3.2078]
[1673012344454,4.60715584,1244.7,1244.4,1.609]
[1673012344770,4.60715584,1244.7,1244.5,3.2078]
[1673012345188,1.601,1244.7,1244.5,3.2078]
[1673012345405,4.60715584,1244.7,1244.4,1.609]
[1673012345823,1.609,1244.5,1244.3,3.2078]
[1673012346346,1.598,1244.4,1244.1,4.4071895]
[1673012346550,1.609,1244.2,1244.1,3.2078]
[1673012346971,1.594,1244.3,1244.1,3.2078]
[1673012350344,1.609,1244.3,1244.1,3.2078]
[1673012351702,1.609,1244.3,1243.9,14.0581895]
[1673012352332,1.609,1244.3,1244.1,3.2078]
[1673012353486,1.609,1244.3,1243.9,4.8168]
[1673012354430,1.609,1244.3,1244.1,3.2078]
[1673012355067,1.609,1244.2,1243.7,4.4071895]
[1673012355382,1.609,1244.0,1243.7,4.4071895]
[1673012355588,1.609,1244.0,1243.9,3.2078]
[1673012356744,1.29230174,1244.0,1243.9,3.2078]
[1673012356950,1.609,1244.1,1243.9,3.2078]
[1673012357691,1.609,1244.3,1243.9,15.84065103]
[1673012357692,1.601,1244.3,1243.9,15.84065103]
[1673012357896,1.601,1244.3,1243.9,6.00294041]
[1673012358114,1.601,1244.3,1244.1,3.2078]
[1673012358745,1.609,1244.2,1244.1,3.2078]
[1673012360529,3.218,1244.2,1243.9,3.2078]
[1673012360741,1.609,1244.0,1243.9,3.2078]
[1673012361796,1.609,1244.0,1243.7,6.20065103]
[1673012361996,1.609,1244.0,1243.7,4.40494041]
[1673012362944,1.609,1244.0,1243.7,6.20065103]
[1673012364423,1.609,1244.0,1243.7,4.40494041]
[1673012364738,1.609,1244.0,1243.9,3.2078]
[1673012365154,1.609,1244.0,1243.7,4.40494041]
[1673012365364,1.609,1244.0,1243.9,3.2078]
[1673012365571,1.609,1244.0,1243.7,4.40494041]
[1673012365779,1.609,1244.0,1243.7,3.2078]
[1673012365780,1.609,1243.8,1243.7,3.2078]
[1673012365994,1.609,1243.8,1243.6,1.19714041]
[1673012366204,1.609,1243.7,1243.5,6.20065103]
[1673012366513,1.609,1243.7,1243.5,4.40494041]
[1673012366730,1.609,1243.7,1243.5,6.20065103]
[1673012366946,1.609,1243.7,1243.5,4.40494041]
[1673012367148,1.609,1243.7,1243.5,6.20065103]
[1673012367359,1.609,1243.7,1243.5,4.40494041]
[1673012367884,1.609,1243.7,1243.5,6.20065103]
[1673012368088,1.609,1243.7,1243.5,4.40494041]
[1673012368310,5.7295,1244.0,1243.8,1.36063133]
[1673012368623,1.598,1243.9,1243.8,1.36063133]
[1673012369672,1.598,1243.9,1243.5,6.20347533]
[1673012369887,1.609,1243.7,1243.5,4.40607013]
[1673012370300,1.609,1243.8,1243.5,6.20347533]
[1673012370511,1.609,1243.9,1243.7,4.40607013]
[1673012370726,1.609,1243.9,1243.7,3.2078]
[1673012371672,1.609,1243.9,1243.7,4.40607013]
[1673012373977,1.609,1243.9,1243.8,1.19827013]
[1673012374182,1.609,1243.9,1243.7,6.20347533]
[1673012374390,1.609,1243.9,1243.7,3.2078]
[1673012374599,1.609,1243.8,1243.7,3.2078]
[1673012375022,1.604,1243.9,1243.7,4.40607013]
[1673012375240,1.609,1244.0,1243.7,6.20347533]
[1673012376285,1.609,1244.0,1243.7,4.40607013]
[1673012376702,1.609,1243.9,1243.7,4.40607013]
[1673012377341,1.609,1243.9,1243.7,3.2078]
[1673012377551,1.609,1243.8,1243.6,2.99567533]
[1673012377760,1.609,1243.8,1243.5,6.20347533]
[1673012377961,1.609,1243.8,1243.6,1.19827013]
[1673012378599,1.609,1243.8,1243.7,3.2078]
[1673012379127,1.609,1243.9,1243.7,3.2078]
[1673012380181,1.609,1244.0,1243.7,4.40607013]
[1673012380594,1.609,1244.0,1243.7,6.20347533]
[1673012380804,1.609,1244.0,1243.7,4.40607013]
[1673012381856,1.609,1244.0,1243.9,3.2078]
[1673012382278,1.609,1244.0,1243.7,4.40607013]
[1673012382807,1.609,1244.0,1243.7,6.20347533]
[1673012383332,1.609,1244.0,1243.7,4.40607013]
[1673012384479,1.609,1244.0,1243.7,6.20347533]
[1673012384905,1.609,1244.0,1243.7,4.40607013]
[1673012385222,4.61515584,1244.0,1243.7,4.40607013]
[1673012385638,1.599,1243.8,1243.7,4.40607013]
[1673012385844,1.599,1243.8,1243.7,3.2078]
[1673012386268,1.608,1243.9,1243.7,4.40607013]
[1673012386481,1.608,1243.9,1243.7,6.20347533]
[1673012387115,1.608,1243.9,1243.7,4.40607013]
[1673012387644,1.608,1243.9,1243.7,6.20347533]
[1673012387856,0.35485584,1244.0,1243.7,6.20347533]
[1673012388062,1.609,1243.9,1243.7,4.40607013]
[1673012389010,1.609,1243.9,1243.7,6.20347533]
[1673012390886,1.609,1243.9,1243.7,4.40607013]
[1673012391941,1.609,1243.9,1243.7,1.19827013]
[1673012392156,1.609,1243.9,1243.6,1.19827013]
[1673012392157,1.609,1243.8,1243.6,1.19827013]
[1673012394055,1.609,1243.8,1243.7,4.40607013]
[1673012394265,1.608,1243.9,1243.7,4.40607013]
[1673012395211,1.608,1243.9,1243.8,1.19827013]
[1673012395522,1.603,1244.0,1243.8,1.19827013]
[1673012395734,1.603,1244.0,1243.9,3.2078]
[1673012399304,1.603,1244.0,1243.9,4.40607013]
[1673012400565,17.17731935,1244.2,1243.9,8.2072052]
[1673012400774,3.59531935,1244.2,1244.1,3.2078]
[1673012400985,9.39839397,1244.3,1244.1,3.2078]
[1673012401197,3.59531935,1244.2,1244.1,3.2078]
[1673012401415,5.20431935,1244.2,1243.9,7.82749975]
[1673012401614,5.20431935,1244.2,1243.9,6.0210799]
[1673012401825,5.20431935,1244.2,1243.9,7.82749975]
[1673012402453,3.59531935,1244.1,1243.9,6.0210799]
[1673012402669,5.19431935,1244.1,1243.9,1.2042799]
[1673012402884,5.19431935,1244.1,1243.9,4.4120799]
[1673012405511,1.609,1244.0,1243.9,3.2078]
[1673012406765,1.609,1244.0,1243.9,6.21849975]
[1673012406976,1.597,1244.1,1243.9,6.21877959]
[1673012407196,1.597,1244.1,1243.9,4.41235974]
[1673012407512,5.19231935,1244.1,1243.9,4.41235974]
[1673012408034,3.00696883,1244.0,1243.9,6.02135974]
[1673012408250,3.00696883,1244.1,1243.9,6.62321985]
[1673012408452,3.00696883,1244.0,1243.9,6.62321985]
[1673012408657,5.19631935,1244.2,1243.9,6.62321985]
[1673012408658,3.00696883,1244.1,1243.9,6.62321985]
[1673012408870,3.00696883,1244.1,1244.0,1.20440688]
[1673012409509,5.19631935,1244.2,1243.9,7.82762673]
[1673012409711,3.00648103,1244.0,1243.9,6.02120688]
[1673012409922,3.00648103,1244.0,1243.9,7.82762673]
[1673012410346,3.00648103,1244.1,1243.9,9.01976011]
[1673012410556,3.00648103,1244.1,1244.0,2.81332453]
[1673012410983,3.00648103,1244.1,1244.0,4.61974438]
[1673012411182,3.00648103,1244.1,1244.0,2.81332453]
[1673012411394,3.00648103,1244.2,1244.0,5.81196011]
[1673012411611,3.00648103,1244.2,1244.1,6.02074052]
[1673012413396,3.00648103,1244.2,1244.1,4.8168]
[1673012414138,3.59531935,1244.3,1244.1,4.8168]
[1673012414559,3.00435783,1244.3,1244.1,7.82716037]
[1673012414770,3.00435783,1244.3,1244.1,6.02074052]
[1673012415187,3.00435783,1244.4,1244.2,2.80994052]
[1673012415391,3.00435783,1244.4,1244.3,3.2078]
[1673012415600,3.00435783,1244.5,1244.3,6.4218]
[1673012415814,3.00435783,1244.5,1244.4,1.609]
[1673012416239,5.19531935,1244.6,1244.3,4.8168]
[1673012416447,3.00321982,1244.4,1244.3,4.8168]
[1673012416767,3.00321982,1244.4,1244.2,1.605]
[1673012418238,4.60221982,1244.4,1244.3,3.2078]
[1673012418651,1.599,1244.4,1244.3,3.2078]
[1673012419072,1.599,1244.4,1244.1,4.8168]
[1673012419292,2.99999454,1244.3,1244.1,4.8168]
[1673012420126,4.59899454,1244.4,1244.1,6.02074052]
[1673012420447,4.59899454,1244.4,1244.3,3.2078]
[1673012420448,2.99999454,1244.4,1244.3,3.2078]
[1673012421277,4.59699454,1244.5,1244.3,3.2078]
[1673012423488,2.99999454,1244.5,1244.3,4.8168]
[1673012423698,16.58199454,1244.6,1244.4,1.609]
[1673012423905,5.19431935,1244.7,1244.5,3.2078]
[1673012424966,2.99772118,1244.7,1244.5,4.8078]
[1673012425390,2.99772118,1244.6,1244.5,4.8078]
[1673012426759,2.99772118,1244.7,1244.5,4.8078]
[1673012428956,2.99772118,1244.7,1244.6,1.609]
[1673012429167,2.99772118,1244.8,1244.6,1.609]
[1673012429379,2.99772118,1244.9,1244.7,6.4168]
[1673012429591,2.99772118,1244.9,1244.8,1.593]
[1673012430008,2.99772118,1245.0,1244.8,1.593]
[1673012430217,2.99772118,1245.0,1244.9,3.2078]
[1673012430432,2.99772118,1245.1,1244.9,4.8168]
[1673012430643,5.20331935,1245.2,1244.9,4.8168]
[1673012430857,1.599,1245.1,1244.9,3.2078]
[1673012433794,1.609,1245.3,1245.0,1.609]
[1673012434002,1.609,1245.3,1245.1,3.2078]
[1673012434949,15.185,1245.4,1245.1,12.8588]
[1673012435164,1.603,1245.4,1245.1,4.8168]
[1673012435789,1.608,1245.3,1245.1,3.2078]
[1673012436205,1.608,1245.3,1245.0,1.6]
[1673012437274,1.608,1245.3,1245.1,3.2078]
[1673012438850,1.608,1245.3,1245.0,1.6]
[1673012439586,1.609,1245.2,1244.9,4.8168]
[1673012440218,1.608,1245.1,1244.9,3.2078]
[1673012441477,1.609,1245.2,1244.9,4.8138]
[1673012442735,1.609,1245.0,1244.7,4.8168]
[1673012442952,1.609,1244.9,1244.7,3.2078]
[1673012444096,1.609,1245.1,1244.8,1.6]
[1673012444308,5.9153,1245.3,1245.0,1.607]
[1673012444519,5.9153,1245.3,1245.1,3.2078]
[1673012444520,1.608,1245.3,1245.1,3.2078]
[1673012445688,3.211,1245.2,1245.1,3.2078]
[1673012446107,3.211,1245.2,1244.9,3.2078]
[1673012446418,1.6,1245.1,1244.9,3.2078]
[1673012448001,1.609,1245.2,1244.9,4.8168]
[1673012448943,1.609,1245.2,1244.9,12.8588]
[1673012449994,1.609,1245.3,1245.1,3.2078]
[1673012451145,18.3928,1245.4,1245.1,4.8118]
[1673012451471,4.8108,1245.4,1245.1,4.8118]
[1673012451994,1.603,1245.4,1245.1,4.8118]
[1673012453353,1.603,1245.4,1245.1,12.8538]
[1673012453671,1.603,1245.4,1245.1,4.8118]
[1673012456820,4.8108,1245.4,1245.1,4.8118]
[1673012457036,4.8108,1245.4,1245.1,1.604]
[1673012458931,8.40611935,1245.4,1245.1,1.604]
[1673012459346,4.8108,1245.4,1245.1,1.604]
[1673012459554,1.603,1245.4,1245.1,4.8118]
[1673012460189,4.1941,1245.5,1245.3,4.8118]
[1673012460396,18.78031935,1245.7,1245.4,1.6]
[1673012460719,5.19831935,1245.7,1245.4,1.6]
[1673012461138,1.603,1245.7,1245.4,1.6]
[1673012461554,5.19831935,1245.7,1245.4,1.6]
[1673012461759,1.603,1245.7,1245.4,1.6]
[1673012462184,5.19831935,1245.7,1245.4,1.6]
[1673012463021,9.39239397,1245.7,1245.4,1.6]
[1673012463243,5.19831935,1245.7,1245.4,1.6]
[1673012464286,3.2078,1245.6,1245.3,4.8118]
[1673012464496,8.40011935,1245.6,1245.3,4.8118]
[1673012465965,5.19231935,1245.6,1245.3,4.8118]
[1673012466169,4.19407462,1245.7,1245.3,4.8118]
[1673012466170,3.59531935,1245.7,1245.5,1.6]
[1673012466389,14.97023017,1245.9,1245.6,1.609]
[1673012466390,7.78939397,1245.9,1245.6,1.609]
[1673012466597,3.59531935,1246.0,1245.8,1.6]
[1673012466799,3.59531935,1246.0,1245.7,12.8438]
[1673012467220,6.80311935,1246.1,1245.7,4.8018]
[1673012467436,4.8158,1246.1,1245.8,1.606]
[1673012467968,8.41111935,1246.1,1245.8,1.60034016]
[1673012468280,5.20431935,1246.2,1245.9,4.8168]
[1673012468491,1.609,1246.2,1245.9,4.8168]
[1673012468913,5.20431935,1246.2,1245.9,12.8588]
[1673012469126,1.609,1246.2,1245.9,4.8168]
[1673012469550,1.599,1246.1,1245.9,3.2078]
[1673012470482,1.609,1246.2,1246.0,1.609]
[1673012470696,6.80511935,1246.5,1246.1,12.8498]
[1673012470910,6.80511935,1246.5,1246.2,1.609]
[1673012471227,3.59731935,1246.5,1246.2,1.609]
[1673012471536,1.61,1246.5,1246.2,1.607]
[1673012471746,1.61,1246.5,1246.4,1.593]
[1673012471747,0.002,1246.5,1246.4,1.593]
[1673012471960,0.002,1246.5,1246.4,14.4638]
[1673012472274,0.002,1246.5,1246.4,6.4218]
[1673012472805,0.002,1246.5,1246.4,14.4638]
[1673012473321,0.002,1246.5,1246.4,12.8588]
[1673012473533,0.002,1246.5,1246.4,4.8168]
[1673012474159,0.002,1246.5,1246.3,1.609]
[1673012474381,1.611,1246.5,1246.2,4.8138]
[1673012475105,1.599,1246.4,1246.2,3.2078]
[1673012476271,1.604,1246.5,1246.2,12.8428]
[1673012476486,1.604,1246.5,1246.2,4.8008]
[1673012476893,0.002,1246.5,1246.3,1.6]
[1673012477846,0.002,1246.5,1246.4,3.2078]
[1673012478893,1.597,1246.6,1246.5,0.0052816]
[1673012479421,4.8048,1246.6,1246.5,0.0052816]
[1673012481210,1.597,1246.6,1246.5,0.0052816]
[1673012481422,4.8048,1246.6,1246.5,0.0052816]
[1673012482467,4.8048,1246.6,1246.4,0.002]
[1673012482680,3.207,1246.5,1246.4,0.002]
[1673012483522,1.605,1246.5,1246.4,0.002]
[1673012485834,3.209,1246.5,1246.2,3.2078]
[1673012486045,1.6,1246.3,1246.2,3.2078]
[1673012486578,1.609,1246.3,1246.2,3.2078]
[1673012486784,1.609,1246.3,1246.0,1.609]
[1673012487311,1.609,1246.2,1245.9,4.8168]
[1673012487627,1.599,1246.1,1245.9,3.2078]
[1673012487845,1.609,1246.0,1245.7,4.8078]
[1673012488567,1.609,1246.3,1245.9,4.8168]
[1673012488886,1.609,1246.3,1246.0,1.609]
[1673012489616,13.582,1246.5,1246.2,3.208]
[1673012489823,13.582,1246.5,1246.3,1.604]
[1673012489824,3.2078,1246.5,1246.3,1.604]
[1673012490030,4.8078,1246.5,1246.2,1.6]
[1673012490988,1.599,1246.4,1246.1,4.8008]
[1673012493827,12.8108,1246.7,1246.3,1.604]
[1673012494030,4.8108,1246.7,1246.3,1.604]
[1673012495180,4.8108,1246.7,1246.3,12.8538]
[1673012495402,4.8108,1246.7,1246.3,4.8118]
[1673012495810,15.191,1246.8,1246.5,1.607]
[1673012496035,1.609,1246.8,1246.5,4.8148]
[1673012496361,6.0009,1246.9,1246.6,1.6]
[1673012496545,1.599,1246.9,1246.6,1.6]
[1673012496970,1.603,1246.8,1246.5,4.8118]
[1673012498337,1.609,1246.9,1246.6,1.6]
[1673012498755,21.791,1247.2,1246.8,3.204]
[1673012498756,0.002,1247.2,1246.8,3.204]
[1673012498963,0.002,1247.2,1247.0,1.609]
[1673012500457,1.61,1247.2,1246.9,4.8168]
[1673012501185,1.61,1247.2,1246.9,1.609]
[1673012502339,4.8178,1247.2,1246.9,1.609]
[1673012502658,4.8178,1247.2,1246.9,4.8168]
[1673012503708,4.8178,1247.2,1246.9,1.609]
[1673012504228,3.2098,1247.2,1247.0,1.609]
[1673012505173,0.002,1247.2,1247.1,1.606]
[1673012505386,3.2098,1247.2,1247.1,1.605]
[1673012505916,3.2098,1247.2,1246.8,1.601]
[1673012506123,0.002,1247.2,1246.8,9.643]
[1673012506967,0.002,1247.2,1247.0,1.605]
[1673012507179,3.2098,1247.2,1247.0,1.605]
[1673012507385,3.2098,1247.2,1246.9,1.605]
[1673012508540,3.2098,1247.2,1247.0,1.605]
[1673012509387,3.2098,1247.2,1246.9,1.597]
[1673012512445,3.2078,1247.0,1246.9,1.597]
[1673012513805,4.8128,1247.0,1246.6,1.605]
[1673012514339,1.591,1246.7,1246.3,4.8248]
[1673012515592,4.8128,1246.8,1246.4,1.605]
[1673012516120,4.8128,1246.8,1246.3,11.2498]
[1673012516121,1.592,1246.7,1246.3,4.8128]
[1673012516447,4.7988,1246.6,1246.3,3.2078]
[1673012516647,4.7988,1246.6,1246.2,1.605]
[1673012517176,3.2078,1246.6,1246.3,1.593]
[1673012517386,18.3948,1246.8,1246.5,1.6]
[1673012517593,4.8128,1246.8,1246.5,1.6]
[1673012518641,3.2078,1246.8,1246.6,1.603]
[1673012520317,3.2078,1246.8,1246.6,1.601]
[1673012520845,1.605,1246.9,1246.6,1.601]
[1673012521052,26.58175038,1247.1,1246.8,1.602]
[1673012521266,17.13975038,1247.2,1246.8,1.602]
[1673012521474,1.606,1247.1,1246.8,1.602]
[1673012522749,9.00987462,1247.2,1246.9,1.606]
[1673012523057,9.00987462,1247.2,1247.0,1.606]
[1673012523058,3.2098,1247.2,1247.0,1.606]
[1673012523587,7.40387462,1247.2,1247.0,1.606]
[1673012523792,3.2098,1247.2,1247.0,1.606]
[1673012525692,7.40387462,1247.2,1247.0,1.606]
[1673012525997,4.8158,1247.2,1246.9,1.606]
[1673012526208,1.6,1247.0,1246.7,1.601]
[1673012526416,4.8078,1247.0,1246.7,1.601]
[1673012526626,1.594,1246.9,1246.6,1.606]
[1673012526845,3.2078,1246.8,1246.6,1.606]
[1673012527580,4.8138,1246.8,1246.5,1.594]
[1673012528206,3.2078,1246.8,1246.6,1.598]
[1673012530095,1.606,1247.1,1246.7,6.4198]
[1673012530298,1.606,1247.1,1246.8,1.602]
[1673012530719,10.52995038,1247.2,1246.9,1.593]
[1673012531466,4.19407462,1247.1,1246.9,1.593]
[1673012532304,5.79407462,1247.2,1246.9,1.593]
[1673012532514,0.002,1247.2,1247.1,1.606]
[1673012532827,0.002,1247.2,1247.1,3.21]
[1673012533038,0.002,1247.2,1247.1,6.4178]
[1673012535035,0.002,1247.2,1247.1,3.21]
[1673012535468,0.002,1247.2,1247.1,1.604]
[1673012537688,4.19607462,1247.2,1247.1,1.604]
[1673012538841,0.002,1247.2,1247.1,1.604]
[1673012539260,4.19607462,1247.2,1247.1,1.604]
[1673012540513,0.002,1247.2,1247.1,11.247]
[1673012540731,0.002,1247.2,1247.1,3.205]
[1673012541357,0.002,1247.2,1247.1,6.4128]
[1673012542846,0.002,1247.2,1247.1,14.4548]
[1673012543251,0.002,1247.2,1247.1,16.0608]
[1673012543468,8.55827462,1247.7,1247.1,16.0608]
[1673012543678,4.19407462,1247.7,1247.6,1.606]
[1673012544097,8.92995038,1247.8,1247.6,1.606]
[1673012544508,4.19407462,1247.8,1247.6,1.606]
[1673012544830,4.19407462,1247.8,1247.7,1.606]
[1673012545457,4.19407462,1247.9,1247.7,1.606]
[1673012545879,4.8128,1248.0,1247.7,4.8138]
[1673012546505,3.2078,1248.0,1247.8,1.606]
[1673012547546,4.8138,1248.0,1247.7,4.8138]
[1673012547956,4.8138,1248.0,1247.7,1.606]
[1673012548378,1.6,1248.1,1247.8,1.606]
[1673012548587,4.8138,1248.2,1247.9,1.601]
[1673012548794,3.2078,1248.2,1248.0,1.602]
[1673012549215,3.2078,1248.2,1248.1,1.596]
[1673012549541,3.2078,1248.2,1248.0,1.606]
[1673012550478,3.2078,1248.2,1248.1,1.606]
[1673012551108,4.8138,1248.2,1247.9,1.601]
[1673012551319,4.8138,1248.2,1247.9,4.8088]
[1673012551524,1.606,1248.3,1248.0,1.606]
[1673012551747,1.606,1248.5,1248.2,1.598]
[1673012551955,4.8138,1248.5,1248.2,1.598]
[1673012553109,13.582,1248.6,1248.4,1.606]
[1673012553312,3.2078,1248.7,1248.5,1.606]
[1673012553526,3.2078,1248.7,1248.6,1.604]
[1673012553737,26.3838,1248.9,1248.6,1.604]
[1673012553946,2.717,1249.0,1248.7,1.593]
[1673012554471,1.111,1249.0,1248.8,1.606]
[1673012554683,2.716,1249.0,1248.7,1.598]
[1673012554897,3.2078,1248.9,1248.7,1.598]
[1673012555103,2.716,1249.0,1248.7,1.598]
[1673012555317,1.111,1249.0,1248.9,6.4058]
[1673012555529,1.111,1249.0,1248.9,16.0398]
[1673012555739,3.2078,1249.5,1248.9,7.9978]
[1673012555945,3.0,1249.1,1248.7,4.8138]
[1673012556157,6.2078,1249.1,1248.5,3.2078]
[1673012556367,1.606,1248.9,1248.5,3.2078]
[1673012556589,4.8138,1249.1,1248.8,1.593]
[1673012556989,1.606,1249.1,1248.9,1.606]
[1673012557213,3.2078,1249.5,1249.0,1.606]
[1673012557420,3.2078,1249.5,1249.1,3.2078]
[1673012557631,4.8058,1249.5,1249.2,1.604]
[1673012558042,3.0,1249.3,1249.2,1.592]
[1673012558255,3.0,1249.3,1249.2,3.19]
[1673012559000,3.0,1249.3,1249.2,1.602]
[1673012559416,3.0,1249.3,1249.2,3.188]
[1673012560785,3.0,1249.3,1249.1,1.601]
[1673012561202,3.0,1249.3,1249.2,1.606]
[1673012562036,1.606,1249.2,1248.6,3.2078]
[1673012562252,1.595,1248.9,1248.6,3.2078]
[1673012562676,1.595,1248.9,1248.5,1.606]
[1673012562882,3.2078,1248.8,1248.5,1.606]
[1673012563508,3.2078,1248.8,1248.4,3.2078]
[1673012563509,1.599,1248.6,1248.2,4.8138]
[1673012563723,1.599,1248.6,1248.4,3.2078]
[1673012563935,1.599,1248.6,1248.2,4.8138]
[1673012564253,1.591,1248.6,1248.3,1.601]
[1673012564561,4.7988,1248.6,1248.3,1.601]
[1673012564773,1.606,1248.5,1248.2,4.8098]
[1673012565402,1.606,1248.4,1248.2,3.2078]